[Event "FIDE WYCC Girls U18 2023"]
[Site "Montesilvano"]
[Date "2023.11.24"]
[Round "11.2"]
[White "Balabayeva, Xeniya"]
[Black "Kurmangaliyeva, Liya"]
[Result "1-0"]
[ECO "A45"]
[WhiteElo "2192"]
[BlackElo "2236"]
[Annotator "RC"]
[PlyCount "117"]
[EventDate "2023.11.13"]
[EventType "swiss"]
[EventCountry "ITA"]
[SourceTitle "playchess.com"]
[Source "ChessBase"]
[SourceQuality "1"]
[TimeControl "40/5400+30:1800+30"]

1. d4 {[%emt 0:00:04]} Nf6 {[%emt 0:00:46]} 2. Bf4 {[%emt 0:00:10]} c6 {[%emt 0:00:18]} 3. c3 {[%emt 0:06:08]} Qb6 {[%emt 0:03:35]} 4. Qc2 {[%emt 0:00:54]} g6 {[%emt 0:03:50]} 5. h3 {[%emt 0:12:23]} Bg7 {[%emt 0:08:41]} 6. Nd2 {[%emt 0:11:05]} c5 {[%emt 0:09:02]} 7. e3 {[%emt 0:06:32]} d6 {[%emt 0:15:41]} 8. Ngf3 {[%emt 0:01:07]} O-O {[%emt 0:03:30]} 9. Be2 {[%emt 0:02:58]} cxd4 {[%emt 0:04:47]} 10. exd4 {[%emt 0:02:31]} Bf5 {[%emt 0:00:38]} 11. Qb3 {[%emt 0:03:44]} Qc7 {[%emt 0:00:41]} 12. O-O {[%emt 0:02:57]} Nc6 {[%emt 0:00:38]} 13. Rfe1 {[%emt 0:10:40]} e5 {[%emt 0:06:40]} 14. dxe5 {[%emt 0:00:44]} dxe5 {[%emt 0:00:16]} 15. Bh2 {[%emt 0:04:10]} Rad8 {[%emt 0:14:25]} 16. Bb5 {[%emt 0:07:35]} Nd7 {[%emt 0:01:20]} 17. Qc4 {[%emt 0:04:56]} Be6 {[%emt 0:06:19]} 18. Qh4 {[%emt 0:05:01]} h6 {[%emt 0:00:07]} 19. Rad1 {[%emt 0:09:29]} Bf5 {[%emt 0:15:55]} 20. Nc4 {[%emt 0:02:23]} g5 {[%emt 0:00:58]} 21. Qg3 {[%emt 0:01:56]} f6 {[%emt 0:00:05]} 22. Nd4 {[%emt 0:02:54]} Nxd4 {[%emt 0:00:48]} 23. cxd4 {[%emt 0:00:02]} a6 {[%emt 0:01:23]} 24. Ne3 {[%emt 0:01:07]} Bh7 {[%emt 0:01:23]} 25. Bxd7 {[%emt 0:00:25]} Rxd7 {[%emt 0:00:14]} 26. dxe5 {[%emt 0:00:11]} fxe5 {[%emt 0:00:32]} 27. Nd5 {[%emt 0:00:57]} Qc6 {[%emt 0:00:49]} 28. Qb3 {[%emt 0:00:50]} Kh8 {[%emt 0:00:05]} 29. Ne3 {[%emt 0:00:34]} Rdf7 {[%emt 0:00:25]} 30. Rd2 {[%emt 0:00:18]} e4 {[%emt 0:00:40]} 31. Ng4 {[%emt 0:00:31]} Rf5 {[%emt 0:00:54]} 32. Bd6 {[%emt 0:00:25]} Re8 {[%emt 0:00:23]} 33. Red1 {[%emt 0:00:35]} Bg8 {[%emt 0:00:11]} 34. Qg3 {[%emt 0:00:38]} Qa4 {[%emt 0:00:58]} 35. Ne3 {[%emt 0:00:33]} Rf7 {[%emt 0:00:24]} 36. b3 {[%emt 0:00:29]} Qa5 {[%emt 0:00:33]} 37. Nc4 {[%emt 0:00:24]} Qf5 {[%emt 0:00:21]} 38. Rd5 {[%emt 0:00:22]} Qh7 {[%emt 0:00:31]} 39. Ne3 {[%emt 0:00:44]} Rd7 {[%emt 0:00:26]} 40. R5d2 {[%emt 0:00:00]} Red8 {[%emt 0:00:00]} 41. Nc4 {[%emt 0:04:04]} Qf5 {[%emt 0:08:31]} 42. Qe3 {[%emt 0:03:05]} Qe6 {[%emt 0:10:08]} 43. Be5 {[%emt 0:06:54]} b5 {[%emt 0:12:24]} 44. Bxg7+ {[%emt 0:05:06]} Kxg7 {[%emt 0:00:20]} 45. Qc3+ {[%emt 0:00:35]} Kh7 {[%emt 0:00:05]} 46. Nd6 {[%emt 0:00:54]} Kg6 {[%emt 0:02:01]} 47. Qc5 {[%emt 0:03:30]} Bh7 {[%emt 0:00:46]} 48. Rd5 {[%emt 0:02:21]} e3 {[%emt 0:00:29]} 49. fxe3 {[%emt 0:00:36]} Kh5 {[%emt 0:00:32]} 50. R5d2 {[%emt 0:02:59]} Kg6 {[%emt 0:00:29]} 51. e4 {[%emt 0:00:47]} Kg7 {[%emt 0:00:26]} 52. e5 {[%emt 0:00:48]} Kg8 {[%emt 0:00:16]} 53. Rf1 {[%emt 0:01:20]} Re7 {[%emt 0:00:43]} 54. Nf5 {[%emt 0:00:29]} Rxd2 {[%emt 0:00:37]} 55. Nxe7+ {[%emt 0:00:07]} Kg7 {[%emt 0:00:08]} 56. Rf6 {[%emt 0:00:33]} Qd7 {[%emt 0:00:50]} 57. Nf5+ {[%emt 0:00:08]} Bxf5 {[%emt 0:00:17]} 58. Qf8+ {[%emt 0:00:05]} Kh7 {[%emt 0:00:03]} 59. Rxh6# {[%emt 0:00:04]} 1-0

[Event "FIDE WYCC Girls U18 2023"]
[Site "Montesilvano"]
[Date "2023.11.24"]
[Round "11.3"]
[White "Wikar, Martyna"]
[Black "Mihelic, Vesna"]
[Result "1/2-1/2"]
[ECO "D31"]
[WhiteElo "2228"]
[BlackElo "2102"]
[Annotator "RC"]
[PlyCount "120"]
[EventDate "2023.11.13"]
[EventType "swiss"]
[EventCountry "ITA"]
[SourceTitle "playchess.com"]
[Source "ChessBase"]
[SourceQuality "1"]
[TimeControl "40/5400+30:1800+30"]

1. d4 {[%emt 0:00:07]} d5 {[%emt 0:00:05]} 2. c4 {[%emt 0:00:07]} e6 {[%emt 0:00:06]} 3. Nc3 {[%emt 0:00:30]} h6 {[%emt 0:00:47]} 4. cxd5 {[%emt 0:00:39]} exd5 {[%emt 0:00:08]} 5. Bf4 {[%emt 0:00:15]} c6 {[%emt 0:00:40]} 6. e3 {[%emt 0:01:12]} Bf5 {[%emt 0:00:39]} 7. Bd3 {[%emt 0:01:31]} Bxd3 {[%emt 0:00:17]} 8. Qxd3 {[%emt 0:00:03]} Bd6 {[%emt 0:00:12]} 9. Nge2 {[%emt 0:02:41]} Nf6 {[%emt 0:02:35]} 10. f3 {[%emt 0:07:21]} Bxf4 {[%emt 0:13:40]} 11. Nxf4 {[%emt 0:00:26]} Qd6 {[%emt 0:00:21]} 12. O-O {[%emt 0:02:54]} O-O {[%emt 0:00:28]} 13. g3 {[%emt 0:05:10]} Nbd7 {[%emt 0:05:36]} 14. Rad1 {[%emt 0:05:47]} Rad8 {[%emt 0:04:39]} 15. Qf5 {[%emt 0:03:49]} Nb6 {[%emt 0:03:50]} 16. Rf2 {[%emt 0:07:48]} Rfe8 {[%emt 0:05:08]} 17. Re2 {[%emt 0:06:12]} Qd7 {[%emt 0:01:17]} 18. Qxd7 {[%emt 0:00:40]} Rxd7 {[%emt 0:03:03]} 19. b3 {[%emt 0:00:42]} Rde7 {[%emt 0:07:44]} 20. Ng2 {[%emt 0:03:37]} Nc8 {[%emt 0:05:48]} 21. Kf2 {[%emt 0:00:54]} Nd6 {[%emt 0:01:05]} 22. g4 {[%emt 0:00:21]} a5 {[%emt 0:05:38]} 23. h4 {[%emt 0:01:00]} Nd7 {[%emt 0:05:36]} 24. Nf4 {[%emt 0:03:21]} Nb6 {[%emt 0:05:59]} 25. a4 {[%emt 0:04:08]} Na8 {[%emt 0:02:04]} 26. Rde1 {[%emt 0:06:06]} Nc7 {[%emt 0:01:48]} 27. e4 {[%emt 0:02:37]} dxe4 {[%emt 0:00:35]} 28. fxe4 {[%emt 0:02:49]} Ne6 {[%emt 0:01:19]} 29. Nxe6 {[%emt 0:01:15]} fxe6 {[%emt 0:02:54]} 30. Ke3 {[%emt 0:03:44]} Rf8 {[%emt 0:02:15]} 31. Rf2 {[%emt 0:01:22]} Rxf2 {[%emt 0:00:59]} 32. Kxf2 {[%emt 0:00:02]} Rf7+ {[%emt 0:00:09]} 33. Ke3 {[%emt 0:00:17]} g5 {[%emt 0:01:34]} 34. hxg5 {[%emt 0:00:50]} hxg5 {[%emt 0:00:02]} 35. e5 {[%emt 0:00:39]} Ne8 {[%emt 0:00:53]} 36. Ne4 {[%emt 0:00:19]} Nc7 {[%emt 0:05:08]} 37. Nxg5 {[%emt 0:01:51]} Nd5+ {[%emt 0:03:05]} 38. Kd2 {[%emt 0:01:36]} Rg7 {[%emt 0:01:34]} 39. Nxe6 {[%emt 0:01:11]} Rxg4 {[%emt 0:01:07]} 40. Rf1 {[%emt 0:00:00]} Rg2+ {[%emt 0:00:00]} 41. Kc1 {[%emt 0:23:45]} Re2 {[%emt 0:07:03]} 42. Rf3 {[%emt 0:03:34]} b5 {[%emt 0:03:35]} 43. Kd1 {[%emt 0:05:34]} Ra2 {[%emt 0:07:38]} 44. Nc5 {[%emt 0:00:33]} Rh2 {[%emt 0:04:25]} 45. Ke1 {[%emt 0:03:19]} Rh4 {[%emt 0:02:00]} 46. Rd3 {[%emt 0:00:11]} Nb4 {[%emt 0:00:56]} 47. Rg3+ {[%emt 0:01:29]} Kf7 {[%emt 0:02:04]} 48. e6+ {[%emt 0:01:03]} Kf8 {[%emt 0:03:35]} 49. Kf2 {[%emt 0:05:34]} Rxd4 {[%emt 0:00:42]} 50. Rf3+ {[%emt 0:01:22]} Ke8 {[%emt 0:00:37]} 51. Rh3 {[%emt 0:00:14]} Rf4+ {[%emt 0:00:45]} 52. Kg3 {[%emt 0:00:34]} Nd5 {[%emt 0:01:42]} 53. Rh8+ {[%emt 0:01:09]} Rf8 {[%emt 0:00:55]} 54. Rh7 {[%emt 0:00:18]} Rg8+ {[%emt 0:03:46]} 55. Kh4 {[%emt 0:03:05]} Rg6 {[%emt 0:02:07]} 56. Ra7 {[%emt 0:04:13]} bxa4 {[%emt 0:00:39]} 57. bxa4 {[%emt 0:01:08]} Nf4 {[%emt 0:00:31]} 58. Rxa5 {[%emt 0:01:19]} Ng2+ {[%emt 0:00:15]} 59. Kh3 {[%emt 0:00:17]} Nf4+ {[%emt 0:00:03]} 60. Kh2 {[%emt 0:00:30]} Nxe6 {[%emt 0:00:14]} 1/2-1/2

[Event "FIDE WYCC Girls U18 2023"]
[Site "Montesilvano"]
[Date "2023.11.24"]
[Round "11.4"]
[White "Voriskova, Anna"]
[Black "Shohradova, Lala"]
[Result "0-1"]
[ECO "C11"]
[WhiteElo "2065"]
[BlackElo "1846"]
[Annotator "NA RC"]
[PlyCount "88"]
[EventDate "2023.11.13"]
[EventType "swiss"]
[EventCountry "ITA"]
[SourceTitle "playchess.com"]
[Source "ChessBase"]
[SourceQuality "1"]
[TimeControl "40/5400+30:1800+30"]

1. e4 {[%emt 0:00:03]} e6 {[%emt 0:00:04]} 2. Nf3 {[%emt 0:00:09]} d5 {[%emt 0:00:06]} 3. Nc3 {[%emt 0:00:10]} dxe4 {[%emt 0:01:01]} 4. Nxe4 {[%emt 0:00:03]} Nf6 {[%emt 0:00:05]} 5. Nxf6+ {[%emt 0:03:18]} Qxf6 {[%emt 0:00:02]} 6. d4 {[%emt 0:00:33]} h6 {[%emt 0:00:28]} 7. Be3 {[%emt 0:01:51]} Bd6 {[%emt 0:01:43]} 8. Qd2 {[%emt 0:03:00]} Nc6 {[%emt 0:11:37]} 9. Be2 {[%emt 0:01:52]} Bd7 {[%emt 0:02:36]} 10. O-O {[%emt 0:02:04]} Ne7 {[%emt 0:03:14]} 11. c4 {[%emt 0:12:43]} c6 {[%emt 0:02:12]} 12. Ne5 {[%emt 0:09:07]} Rd8 {[%emt 0:07:47]} 13. Rad1 {[%emt 0:16:18]} O-O {[%emt 0:06:13]} 14. Bf4 {[%emt 0:02:34]} Bc8 {[%emt 0:03:43]} 15. g3 {[%emt 0:01:25]} Nf5 {[%emt 0:16:17]} 16. Qc3 {[%emt 0:08:06]} Qe7 {[%emt 0:11:36]} 17. a3 {[%emt 0:09:26]} Bxe5 {[%emt 0:07:56]} 18. Bxe5 {[%emt 0:02:02]} b6 {[%emt 0:01:33]} 19. Bf3 {[%emt 0:04:16]} Bb7 {[%emt 0:07:28]} 20. Rfe1 {[%emt 0:00:01]} c5 {[%emt 0:07:06]} 21. d5 {[%emt 0:00:53]} f6 {[%emt 0:00:39]} 22. Bf4 {[%emt 0:01:54]} e5 {[%emt 0:00:49]} 23. b4 {[%emt 0:04:03]} Nd4 {[%emt 0:02:58]} 24. Bg2 {[%emt 0:00:15]} Qd7 {[%emt 0:01:08]} 25. Be3 {[%emt 0:00:21]} Rc8 {[%emt 0:00:34]} 26. bxc5 {[%emt 0:01:42]} bxc5 {[%emt 0:00:14]} 27. Qa5 {[%emt 0:01:16]} Qd6 {[%emt 0:01:28]} 28. Rb1 {[%emt 0:01:24]} Ba6 {[%emt 0:00:37]} 29. Qc3 {[%emt 0:02:03]} Rb8 {[%emt 0:00:01]} 30. Qd3 {[%emt 0:01:54]} Qd7 {[%emt 0:01:39]} 31. f4 {[%emt 0:01:48]} Qa4 {[%emt 0:01:39]} 32. Bxd4 {[%emt 0:02:03]} exd4 {[%emt 0:00:39]} 33. Qg6 {[%emt 0:01:53]} Rxb1 {[%emt 0:00:23]} 34. Rxb1 {[%emt 0:00:10]} Qe8 {[%emt 0:00:51]} 35. Qd3 {[%emt 0:01:04]} f5 {[%emt 0:00:38]} 36. Bf3 {[%emt 0:01:52]} Qa4 {[%emt 0:00:20]} 37. Rc1 {[%emt 0:00:14]} Re8 {[%emt 0:00:03]} 38. Kg2 {[%emt 0:03:06]} Bc8 {[%emt 0:00:17]} 39. Rb1 {[%emt 0:01:34]} Re3 {[%emt 0:00:07]} 40. Qf1 {[%emt 0:00:00]} Qc2+ {[%emt 0:00:00]} 41. Kh3 {[%emt 0:02:43]} Rxf3 {[%emt 0:00:59]} 42. Qxf3 {[%emt 0:00:06]} Qxb1 {[%emt 0:00:06]} 43. d6 {[%emt 0:00:17]} Qe4 {[%emt 0:00:16]} 44. Qb3 {[%emt 0:00:12]} Bb7 {[%emt 0:00:23]} 0-1

[Event "FIDE WYCC Girls U18 2023"]
[Site "Montesilvano"]
[Date "2023.11.24"]
[Round "11.5"]
[White "Obada, Ema"]
[Black "Nguyen, Thien Ngan"]
[Result "1/2-1/2"]
[ECO "C47"]
[WhiteElo "2023"]
[BlackElo "1891"]
[Annotator "NA RC"]
[PlyCount "87"]
[EventDate "2023.11.13"]
[EventType "swiss"]
[EventCountry "ITA"]
[SourceTitle "playchess.com"]
[Source "ChessBase"]
[SourceQuality "1"]
[TimeControl "40/5400+30:1800+30"]

1. e4 {[%emt 0:00:03]} e5 {[%emt 0:00:06]} 2. Nf3 {[%emt 0:00:03]} Nc6 {[%emt 0:00:17]} 3. Nc3 {[%emt 0:00:06]} Nf6 {[%emt 0:00:40]} 4. d4 {[%emt 0:00:06]} exd4 {[%emt 0:00:07]} 5. Nxd4 {[%emt 0:00:05]} Bb4 {[%emt 0:00:07]} 6. Nxc6 {[%emt 0:00:06]} bxc6 {[%emt 0:00:06]} 7. Bd3 {[%emt 0:00:05]} d5 {[%emt 0:00:06]} 8. exd5 {[%emt 0:00:05]} cxd5 {[%emt 0:00:05]} 9. O-O {[%emt 0:00:05]} O-O {[%emt 0:00:10]} 10. h3 {[%emt 0:00:00]} Be6 {[%emt 0:03:38]} 11. Qf3 {[%emt 0:03:37]} Qd7 {[%emt 0:05:27]} 12. Bf4 {[%emt 0:06:07]} Bd6 {[%emt 0:11:08]} 13. Rad1 {[%emt 0:02:21]} Rab8 14. b3 Bxf4 {[%emt 0:04:34]} 15. Qxf4 {[%emt 0:00:40]} c5 {[%emt 0:01:16]} 16. Ne2 {[%emt 0:12:41]} Rb4 {[%emt 0:06:36]} 17. Qf3 {[%emt 0:04:35]} Qc7 {[%emt 0:12:18]} 18. c3 {[%emt 0:04:26]} Rb6 {[%emt 0:04:26]} 19. Bc2 {[%emt 0:00:30]} Rd8 {[%emt 0:02:43]} 20. Rfe1 {[%emt 0:04:18]} a5 {[%emt 0:04:25]} 21. g4 {[%emt 0:07:58]} Rbd6 {[%emt 0:24:01]} 22. Ng3 {[%emt 0:04:15]} g6 {[%emt 0:09:53]} 23. Qxf6 {[%emt 0:03:12]} Bxg4 {[%emt 0:02:17]} 24. Qxd6 {[%emt 0:03:23]} Qxd6 {[%emt 0:01:15]} 25. hxg4 {[%emt 0:00:05]} Qf4 {[%emt 0:00:56]} 26. Re4 {[%emt 0:10:41]} Qg5 {[%emt 0:04:14]} 27. Ra4 {[%emt 0:00:26]} d4 {[%emt 0:01:13]} 28. cxd4 {[%emt 0:08:00]} Qxg4 {[%emt 0:00:10]} 29. d5 {[%emt 0:00:30]} Qg5 {[%emt 0:00:54]} 30. d6 {[%emt 0:03:58]} h5 {[%emt 0:00:49]} 31. Kf1 {[%emt 0:04:23]} h4 {[%emt 0:01:09]} 32. Ne4 {[%emt 0:00:01]} Qf5 {[%emt 0:00:39]} 33. Rxa5 {[%emt 0:04:18]} h3 {[%emt 0:00:27]} 34. Rxc5 {[%emt 0:00:53]} Qf3 {[%emt 0:00:34]} 35. d7 {[%emt 0:03:43]} h2 {[%emt 0:00:30]} 36. Ng3 {[%emt 0:00:03]} Qxg3 {[%emt 0:00:21]} 37. fxg3 {[%emt 0:00:10]} h1=Q+ {[%emt 0:00:02]} 38. Kf2 {[%emt 0:00:09]} Qh2+ {[%emt 0:01:01]} 39. Kf3 {[%emt 0:00:01]} Kg7 {[%emt 0:00:44]} 40. b4 {[%emt 0:00:00]} f5 {[%emt 0:00:00]} 41. Bb3 {[%emt 0:13:17]} Qh5+ {[%emt 0:03:51]} 42. Kf2 {[%emt 0:00:24]} Qh2+ {[%emt 0:00:06]} 43. Kf3 {[%emt 0:00:05]} Qh5+ {[%emt 0:06:38]} 44. Kf2 {[%emt 0:00:46]} 1/2-1/2

[Event "FIDE WYCC Girls U18 2023"]
[Site "Montesilvano"]
[Date "2023.11.24"]
[Round "11.6"]
[White "Naymanova, Patricie"]
[Black "Abrisqueta Zudaire, Leyre"]
[Result "0-1"]
[ECO "D01"]
[WhiteElo "2083"]
[BlackElo "2137"]
[Annotator "NA"]
[PlyCount "70"]
[EventDate "2023.11.13"]
[EventType "swiss"]
[EventCountry "ITA"]
[SourceTitle "playchess.com"]
[Source "ChessBase"]
[SourceQuality "1"]
[TimeControl "40/5400+30:1800+30"]

1. d4 {[%emt 0:00:01]} d5 {[%emt 0:00:11]} 2. Nc3 {[%emt 0:00:06]} Nf6 {[%emt 0:00:29]} 3. Bg5 {[%emt 0:00:04]} Nbd7 {[%emt 0:05:09]} 4. Qd3 {[%emt 0:00:07]} c5 {[%emt 0:02:18]} 5. dxc5 {[%emt 0:02:33]} e6 {[%emt 0:05:54]} 6. O-O-O {[%emt 0:03:06]} Nxc5 {[%emt 0:02:30]} 7. Qd4 {[%emt 0:01:13]} Bd6 {[%emt 0:13:58]} 8. Nf3 {[%emt 0:36:44]} Qe7 {[%emt 0:19:36]} 9. e4 {[%emt 0:12:18]} dxe4 {[%emt 0:18:35]} 10. Bb5+ {[%emt 0:05:29]} Bd7 {[%emt 0:03:43]} 11. b4 {[%emt 0:05:57]} Nd3+ {[%emt 0:04:22]} 12. cxd3 {[%emt 0:06:42]} exf3 {[%emt 0:00:19]} 13. Ne4 {[%emt 0:00:10]} Rc8+ {[%emt 0:05:25]} 14. Kb1 {[%emt 0:01:19]} Nxe4 {[%emt 0:07:09]} 15. Bxe7 {[%emt 0:01:02]} Nc3+ {[%emt 0:00:06]} 16. Kb2 {[%emt 0:02:12]} Nxb5 {[%emt 0:02:31]} 17. Qxg7 {[%emt 0:00:36]} Kxe7 {[%emt 0:00:01]} 18. Qg5+ {[%emt 0:00:12]} Kf8 {[%emt 0:00:50]} 19. gxf3 {[%emt 0:03:41]} Bxb4 {[%emt 0:01:35]} 20. Qh6+ {[%emt 0:02:26]} Ke8 {[%emt 0:00:07]} 21. Kb3 {[%emt 0:03:20]} Bc3 {[%emt 0:01:13]} 22. d4 {[%emt 0:01:46]} Bc6 {[%emt 0:01:13]} 23. d5 {[%emt 0:01:27]} Bxd5+ {[%emt 0:00:47]} 24. Rxd5 {[%emt 0:00:27]} exd5 25. a4 {[%emt 0:00:40]} Nd4+ {[%emt 0:00:21]} 26. Ka2 {[%emt 0:00:10]} Rc4 {[%emt 0:00:45]} 27. Ka3 {[%emt 0:01:50]} Bb4+ {[%emt 0:02:18]} 28. Ka2 {[%emt 0:00:05]} Rc2+ {[%emt 0:01:10]} 29. Kb1 {[%emt 0:00:09]} Bc3 {[%emt 0:00:11]} 30. Re1+ {[%emt 0:02:15]} Kd7 {[%emt 0:01:15]} 31. Qh3+ {[%emt 0:01:26]} f5 {[%emt 0:00:19]} 32. Re3 {[%emt 0:00:44]} Rb2+ {[%emt 0:00:31]} 33. Kc1 {[%emt 0:00:01]} Rc2+ {[%emt 0:00:49]} 34. Kd1 {[%emt 0:00:13]} Rd2+ {[%emt 0:00:05]} 35. Kc1 {[%emt 0:01:26]} Nb3+ {[%emt 0:00:19]} 0-1

[Event "FIDE WYCC Girls U18 2023"]
[Site "Montesilvano"]
[Date "2023.11.24"]
[Round "11.7"]
[White "Petricenco, Ana"]
[Black "Starosta, Martyna"]
[Result "1/2-1/2"]
[ECO "B12"]
[WhiteElo "1902"]
[BlackElo "2208"]
[Annotator "RC"]
[PlyCount "64"]
[EventDate "2023.11.13"]
[EventType "swiss"]
[EventCountry "ITA"]
[SourceTitle "playchess.com"]
[Source "ChessBase"]
[SourceQuality "1"]
[TimeControl "40/5400+30:1800+30"]

1. e4 {[%emt 0:00:04]} c6 {[%emt 0:00:04]} 2. d4 {[%emt 0:00:08]} d5 {[%emt 0:00:04]} 3. e5 {[%emt 0:00:05]} c5 {[%emt 0:00:05]} 4. c3 {[%emt 0:00:04]} Nc6 {[%emt 0:00:34]} 5. Be2 {[%emt 0:00:20]} Bf5 {[%emt 0:04:46]} 6. Nf3 {[%emt 0:02:07]} e6 {[%emt 0:00:28]} 7. O-O {[%emt 0:01:11]} Nge7 {[%emt 0:07:00]} 8. Nbd2 {[%emt 0:05:57]} cxd4 {[%emt 0:06:46]} 9. cxd4 {[%emt 0:00:11]} Qb6 {[%emt 0:00:27]} 10. Nb3 {[%emt 0:07:56]} a5 {[%emt 0:02:22]} 11. Nc5 {[%emt 0:05:28]} Bg6 {[%emt 0:14:22]} 12. Na4 {[%emt 0:04:45]} Qa7 {[%emt 0:01:51]} 13. Be3 {[%emt 0:14:38]} Nf5 {[%emt 0:02:41]} 14. Rc1 {[%emt 0:00:14]} Be7 {[%emt 0:01:10]} 15. Bb5 {[%emt 0:01:08]} Rc8 {[%emt 0:01:51]} 16. h3 {[%emt 0:04:26]} O-O {[%emt 0:00:50]} 17. a3 {[%emt 0:01:56]} Rc7 {[%emt 0:05:52]} 18. Qd2 {[%emt 0:01:26]} Rfc8 {[%emt 0:01:10]} 19. Rc3 {[%emt 0:01:13]} b6 {[%emt 0:03:00]} 20. Rfc1 {[%emt 0:00:58]} Nb8 {[%emt 0:01:16]} 21. Bg5 {[%emt 0:07:37]} h6 {[%emt 0:04:24]} 22. Bxe7 {[%emt 0:00:52]} Nxe7 {[%emt 0:00:14]} 23. Ne1 {[%emt 0:04:11]} Qb7 {[%emt 0:03:35]} 24. Nd3 {[%emt 0:05:13]} Rxc3 {[%emt 0:01:10]} 25. Rxc3 {[%emt 0:00:09]} Rxc3 {[%emt 0:00:57]} 26. Qxc3 {[%emt 0:00:31]} Bxd3 {[%emt 0:00:25]} 27. Qxd3 {[%emt 0:02:09]} Qc7 {[%emt 0:00:34]} 28. Qc3 {[%emt 0:03:24]} Qxc3 {[%emt 0:01:08]} 29. bxc3 {[%emt 0:00:05]} Nc8 {[%emt 0:00:14]} 30. Kf1 {[%emt 0:01:12]} Na7 {[%emt 0:01:51]} 31. Bd3 {[%emt 0:00:31]} b5 {[%emt 0:01:16]} 32. Nc5 {[%emt 0:00:52]} Nbc6 {[%emt 0:01:13]} 1/2-1/2

[Event "FIDE WYCC Girls U18 2023"]
[Site "Montesilvano"]
[Date "2023.11.24"]
[Round "11.8"]
[White "Liu, Kelsey"]
[Black "Tikvesli, Ceylin"]
[Result "1-0"]
[ECO "C77"]
[WhiteElo "2051"]
[BlackElo "1736"]
[Annotator "NA RC"]
[PlyCount "123"]
[EventDate "2023.11.13"]
[EventType "swiss"]
[EventCountry "ITA"]
[SourceTitle "playchess.com"]
[Source "ChessBase"]
[SourceQuality "1"]
[TimeControl "40/5400+30:1800+30"]

1. e4 {[%emt 0:00:08]} e5 {[%emt 0:00:08]} 2. Nf3 {[%emt 0:00:06]} Nc6 {[%emt 0:00:07]} 3. Bb5 {[%emt 0:00:16]} a6 {[%emt 0:00:07]} 4. Ba4 {[%emt 0:00:15]} Nf6 {[%emt 0:01:21]} 5. Qe2 {[%emt 0:00:52]} b5 {[%emt 0:00:22]} 6. Bb3 {[%emt 0:00:05]} Be7 {[%emt 0:01:01]} 7. a4 {[%emt 0:03:23]} Rb8 {[%emt 0:21:06]} 8. axb5 {[%emt 0:03:53]} axb5 {[%emt 0:00:07]} 9. d4 {[%emt 0:04:34]} d6 {[%emt 0:04:36]} 10. d5 {[%emt 0:05:42]} Nb4 {[%emt 0:01:12]} 11. c3 {[%emt 0:05:13]} Na6 {[%emt 0:00:46]} 12. Be3 {[%emt 0:00:33]} O-O {[%emt 0:04:32]} 13. Bc2 {[%emt 0:07:37]} c5 {[%emt 0:03:42]} 14. h3 {[%emt 0:02:07]} Nc7 {[%emt 0:08:32]} 15. Nbd2 {[%emt 0:00:54]} b4 {[%emt 0:04:25]} 16. c4 {[%emt 0:04:17]} Ra8 {[%emt 0:08:34]} 17. Rxa8 {[%emt 0:01:38]} Nxa8 {[%emt 0:00:05]} 18. O-O {[%emt 0:01:16]} Nb6 {[%emt 0:01:12]} 19. Nh2 {[%emt 0:04:51]} g6 {[%emt 0:06:13]} 20. Bh6 {[%emt 0:10:38]} Re8 {[%emt 0:00:16]} 21. Qe3 {[%emt 0:01:05]} Nh5 {[%emt 0:03:03]} 22. g4 {[%emt 0:01:51]} Nf4 {[%emt 0:01:53]} 23. Bxf4 {[%emt 0:04:08]} exf4 {[%emt 0:00:36]} 24. Qd3 {[%emt 0:03:23]} Bf6 {[%emt 0:03:17]} 25. Rb1 {[%emt 0:02:25]} Be5 {[%emt 0:01:54]} 26. Ndf3 {[%emt 0:01:18]} f6 {[%emt 0:01:24]} 27. Kg2 {[%emt 0:01:39]} h6 {[%emt 0:03:49]} 28. Nh4 {[%emt 0:13:47]} g5 {[%emt 0:03:01]} 29. Nf5 {[%emt 0:01:12]} Bxf5 {[%emt 0:01:29]} 30. gxf5 {[%emt 0:00:16]} h5 {[%emt 0:06:06]} 31. Bd1 {[%emt 0:02:42]} h4 {[%emt 0:00:14]} 32. Bh5 {[%emt 0:01:20]} Re7 {[%emt 0:00:53]} 33. Qe2 {[%emt 0:00:14]} Kg7 {[%emt 0:03:37]} 34. Ra1 {[%emt 0:00:44]} Nd7 {[%emt 0:03:45]} 35. Ra6 {[%emt 0:03:16]} Qc8 {[%emt 0:01:50]} 36. Ra2 {[%emt 0:00:35]} Nf8 {[%emt 0:00:38]} 37. Qd1 {[%emt 0:00:49]} Bd4 {[%emt 0:00:30]} 38. Qb1 {[%emt 0:02:28]} Nd7 {[%emt 0:00:54]} 39. Nf3 {[%emt 0:00:21]} Be5 {[%emt 0:00:20]} 40. Nd2 {[%emt 0:00:00]} Kh6 {[%emt 0:00:00]} 41. Be2 {[%emt 0:04:05]} Qb7 {[%emt 0:08:09]} 42. Nb3 {[%emt 0:01:29]} Nb8 {[%emt 0:02:59]} 43. Qd1 {[%emt 0:02:32]} Qc8 {[%emt 0:06:44]} 44. Bh5 {[%emt 0:02:20]} Nd7 {[%emt 0:03:49]} 45. Na5 {[%emt 0:01:08]} Nb8 {[%emt 0:01:18]} 46. Bg6 {[%emt 0:01:24]} Kg7 {[%emt 0:00:15]} 47. Nb3 {[%emt 0:04:33]} Rb7 {[%emt 0:01:46]} 48. Ra8 {[%emt 0:03:22]} Qh8 {[%emt 0:06:15]} 49. Na5 {[%emt 0:00:57]} Rc7 {[%emt 0:00:12]} 50. Nc6 {[%emt 0:00:41]} Rb7 {[%emt 0:00:29]} 51. Qa4 {[%emt 0:01:06]} g4 {[%emt 0:04:32]} 52. Rxb8 {[%emt 0:02:16]} f3+ {[%emt 0:00:51]} 53. Kg1 {[%emt 0:01:27]} Rxb8 {[%emt 0:00:15]} 54. Nxb8 {[%emt 0:00:58]} gxh3 55. Nc6 {[%emt 0:01:09]} h2+ {[%emt 0:01:56]} 56. Kh1 {[%emt 0:00:06]} Bf4 {[%emt 0:00:33]} 57. Nd8 {[%emt 0:01:15]} Qg8 {[%emt 0:00:45]} 58. Ne6+ {[%emt 0:00:57]} Kh6 {[%emt 0:00:10]} 59. Nxf4 {[%emt 0:00:09]} Kg5 {[%emt 0:00:10]} 60. Ne6+ {[%emt 0:00:11]} Kg4 {[%emt 0:00:33]} 61. Kxh2 {[%emt 0:00:18]} Qh8 {[%emt 0:00:23]} 62. Qd1 1-0